bitfinex-derivatives/quotes_BTCF0:USTF0_20250501
["timestamp","ask_amount","ask_price","bid_price","bid_amount"]
[1746061285257,0.2117353,94453.0,94451.0,1.0080394]
[1746061285570,0.2117351,94453.0,94451.0,1.0080394]
[1746061285770,0.25556179,94455.0,94451.0,1.0080394]
[1746061286066,0.25556179,94455.0,94451.0,0.8860394]
[1746061286966,0.04382959,94455.0,94451.0,0.8860394]
[1746061287167,0.04382959,94455.0,94451.0,0.6743]
[1746061287369,0.22783254,94452.0,94451.0,0.2822]
[1746061287558,0.22783254,94452.0,94451.0,0.4939394]
[1746061289569,0.01609544,94452.0,94451.0,0.4939394]
[1746061289759,0.01613544,94452.0,94451.0,0.8547394]
[1746061290162,0.22787254,94452.0,94451.0,1.0098394]
[1746061290469,0.01613544,94452.0,94451.0,1.0098394]
[1746061290670,0.01609544,94452.0,94451.0,1.0098394]
[1746061290876,0.01613544,94452.0,94451.0,1.0098394]
[1746061291073,0.01218501,94457.0,94451.0,0.8510346]
[1746061291376,0.01218501,94457.0,94456.0,0.2117282]
[1746061291575,0.01218501,94457.0,94456.0,0.4717282]
[1746061292168,0.01218501,94457.0,94456.0,0.5356282]
[1746061292475,0.22395091,94457.0,94456.0,0.5356282]
[1746061292677,0.01222501,94457.0,94456.0,0.5356282]
[1746061293266,0.22395091,94457.0,94456.0,0.5356282]
[1746061293774,0.01222501,94457.0,94456.0,0.5356282]
[1746061293969,0.01222501,94457.0,94456.0,0.54605574]
[1746061294672,0.22395091,94457.0,94456.0,0.54605574]
[1746061304869,0.22395091,94457.0,94456.0,0.54705574]
[1746061313483,0.01222501,94457.0,94456.0,0.54705574]
[1746061321582,0.01218501,94457.0,94456.0,0.54705574]
[1746061321778,0.01222501,94457.0,94456.0,0.54705574]
[1746061321979,0.00244608,94458.0,94457.0,0.2117259]
[1746061322176,0.00244608,94458.0,94457.0,0.4724259]
[1746061322383,0.00248608,94458.0,94457.0,0.5374259]
[1746061322576,0.00248608,94458.0,94457.0,0.55298497]
[1746061323084,0.00248608,94458.0,94457.0,0.67498497]
[1746061323486,0.00248608,94458.0,94457.0,0.6604259]
[1746061325083,0.00248608,94458.0,94457.0,0.5384259]
[1746061327882,0.01715638,94460.0,94459.0,0.2117214]
[1746061328087,0.17148285,94465.0,94464.0,0.2117102]
[1746061328295,0.01489336,94468.0,94467.0,0.2117035]
[1746061328595,0.01489336,94468.0,94467.0,0.4517035]
[1746061328794,0.01493336,94468.0,94467.0,0.4517035]
[1746061329196,0.01493336,94468.0,94467.0,0.4841035]
[1746061330189,0.01593336,94468.0,94467.0,0.4841035]
[1746061332497,0.01493336,94468.0,94467.0,0.4841035]
[1746061333794,0.01489336,94468.0,94467.0,0.4841035]
[1746061333999,0.01493336,94468.0,94467.0,0.4841035]
[1746061334593,0.00268029,94468.0,94467.0,0.4841035]
[1746061335190,0.00268029,94468.0,94467.0,0.6061035]
[1746061335493,0.00272029,94468.0,94467.0,0.6061035]
[1746061335896,0.00272029,94468.0,94467.0,0.6211035]
[1746061338303,0.00272029,94468.0,94467.0,0.4991035]
[1746061339390,0.00272029,94468.0,94467.0,0.4911035]
[1746061339896,0.00272029,94468.0,94467.0,0.4901035]
[1746061342190,0.00272029,94468.0,94467.0,0.4841035]
[1746061342390,0.00272029,94468.0,94467.0,0.4911035]
[1746061346210,0.00272029,94468.0,94467.0,0.4901035]
[1746061346607,0.00272029,94468.0,94467.0,0.4841035]
[1746061346812,0.00272029,94468.0,94467.0,0.4901035]
[1746061347112,0.00272029,94468.0,94467.0,0.4841035]
[1746061347409,0.00272029,94468.0,94467.0,0.4901035]
[1746061347714,0.00272029,94468.0,94467.0,0.4841035]
[1746061347903,0.00272029,94468.0,94467.0,0.4911035]
[1746061349209,0.00272029,94468.0,94467.0,0.4841035]
[1746061349514,0.00272029,94468.0,94467.0,0.4901035]
[1746061349808,0.00272029,94468.0,94467.0,0.4911035]
[1746061350513,0.00272029,94468.0,94467.0,0.4901035]
[1746061350812,0.00272029,94468.0,94467.0,0.8509035]
[1746061351208,0.00268029,94468.0,94467.0,0.9729035]
[1746061352118,0.00272029,94468.0,94467.0,0.9729035]
[1746061352407,0.00272029,94468.0,94467.0,0.9739035]
[1746061352803,0.00272029,94468.0,94467.0,0.9669035]
[1746061353004,0.00272029,94468.0,94467.0,0.9729035]
[1746061353404,0.00272029,94468.0,94467.0,1.0303035]
[1746061353711,0.00272029,94468.0,94467.0,1.0373035]
[1746061355617,0.00272029,94468.0,94467.0,1.4239831]
[1746061356612,0.00272029,94468.0,94467.0,1.4549831]
[1746061358211,0.01720767,94473.0,94470.0,0.2116968]
[1746061358412,0.01720767,94473.0,94470.0,0.8583764]
[1746061359008,0.01720767,94473.0,94470.0,0.9200764]
[1746061359221,0.01720767,94473.0,94470.0,1.0420764]
[1746061359722,0.01720767,94473.0,94470.0,1.0480764]
[1746061360221,0.01720767,94473.0,94470.0,0.9260764]
[1746061365827,0.01720767,94473.0,94470.0,1.08807913]
[1746061367824,0.01720767,94473.0,94470.0,1.15147913]
[1746061369323,3e-08,94471.0,94470.0,1.15147913]
[1746061369527,0.02028884,94481.0,94480.0,0.2116744]
[1746061369823,0.02032884,94481.0,94480.0,2.3024744]
[1746061370229,0.02032884,94481.0,94480.0,2.4244744]
[1746061370427,0.02032884,94481.0,94480.0,2.4893744]
[1746061370620,0.02032884,94481.0,94480.0,2.4933744]
[1746061371218,0.02032884,94481.0,94480.0,2.3713744]
[1746061371927,0.02032884,94481.0,94480.0,2.53337713]
[1746061373429,0.02032884,94481.0,94480.0,2.92005673]
[1746061374630,0.02028884,94481.0,94480.0,2.92005673]
[1746061374824,0.02032884,94481.0,94480.0,2.92005673]
[1746061375226,0.02032884,94481.0,94480.0,3.04205673]
[1746061375530,0.02032884,94481.0,94480.0,2.880054]
[1746061376327,0.02032884,94481.0,94480.0,2.758054]
[1746061377130,0.02032884,94481.0,94480.0,2.880054]
[1746061378131,0.02032884,94481.0,94480.0,2.758054]
[1746061380133,0.02032884,94481.0,94480.0,2.880054]
[1746061381128,0.02032884,94481.0,94480.0,2.758054]
[1746061384424,0.02032884,94481.0,94480.0,2.821494]
[1746061385331,0.02048529,94481.0,94480.0,2.821494]
[1746061386128,0.02048529,94481.0,94480.0,1.258054]
[1746061386330,0.02048529,94481.0,94480.0,1.321494]
[1746061386727,0.02048529,94481.0,94480.0,1.317494]
[1746061387033,0.02048529,94481.0,94480.0,1.325494]
[1746061387237,0.14248529,94481.0,94480.0,1.325494]
[1746061388239,0.14248529,94481.0,94480.0,1.322494]
[1746061389345,0.14248529,94481.0,94480.0,1.320494]
[1746061390144,0.02048529,94481.0,94480.0,1.320494]
[1746061391235,0.14248529,94481.0,94480.0,1.320494]
[1746061391638,0.14244529,94481.0,94480.0,1.320494]
[1746061391838,0.07977999,94481.0,94480.0,1.320494]
[1746061392138,0.01873809,94484.0,94483.0,0.2116677]
[1746061392334,0.01873809,94484.0,94483.0,1.2091473]
[1746061392536,0.01877809,94484.0,94483.0,1.2091473]
[1746061392930,0.01877809,94484.0,94483.0,1.2711473]
[1746061393130,0.01877809,94484.0,94483.0,1.3931473]
[1746061393436,0.00637324,94484.0,94483.0,1.3931473]
[1746061393944,0.00637324,94484.0,94483.0,1.4565873]
[1746061394130,0.00637324,94484.0,94483.0,1.3345873]
[1746061395034,0.00637324,94484.0,94483.0,1.3415873]
[1746061395438,0.00637324,94484.0,94483.0,1.3345873]
[1746061395627,0.00637324,94484.0,94483.0,1.3415873]
[1746061398039,0.00637324,94484.0,94483.0,1.7023873]
[1746061401943,4e-08,94484.0,94483.0,1.7023873]
[1746061402143,0.12150926,94500.0,94483.0,1.7023873]
[1746061402144,4e-08,94495.0,94494.0,0.211643]
[1746061402451,0.0149147,94503.0,94502.0,0.2116251]
[1746061402653,0.0149147,94503.0,94502.0,0.8124251]
[1746061403239,0.0149147,94503.0,94502.0,0.8742251]
[1746061403647,0.0149147,94503.0,94502.0,0.88489202]
[1746061404352,0.1369147,94503.0,94502.0,0.88489202]
[1746061404549,0.1369147,94503.0,94502.0,0.88789202]
[1746061405152,0.1369147,94503.0,94502.0,0.88989202]
[1746061406059,0.1369147,94503.0,94502.0,0.89773492]
[1746061408246,0.1369147,94503.0,94502.0,0.89273492]
[1746061408455,0.1369147,94503.0,94502.0,0.89773492]
[1746061408852,0.1369147,94503.0,94502.0,0.88989202]
[1746061410652,4e-08,94506.0,94505.0,0.2116184]
[1746061410843,4e-08,94506.0,94505.0,0.4716184]
[1746061411242,4e-08,94506.0,94505.0,2.0041184]
[1746061411851,0.01900364,94511.0,94510.0,0.2116072]
[1746061412052,0.01900364,94511.0,94510.0,0.8124072]
[1746061412355,0.01904364,94511.0,94510.0,0.8124072]
[1746061412852,0.01904364,94511.0,94510.0,0.8758072]
[1746061413153,0.01904364,94511.0,94510.0,2.3758072]
[1746061414455,0.01904364,94511.0,94510.0,2.3788072]
[1746061417251,0.01904364,94511.0,94510.0,2.7654868]
[1746061420455,0.01904364,94511.0,94510.0,2.8289268]
[1746061420654,0.08934364,94511.0,94510.0,2.7654868]
[1746061420852,0.08934364,94511.0,94510.0,2.8289268]
[1746061421050,0.21134364,94511.0,94510.0,2.8289268]
[1746061422156,0.20184364,94511.0,94510.0,2.8289268]
[1746061422357,0.17174364,94511.0,94510.0,2.8289268]
[1746061431667,0.17174364,94511.0,94510.0,1.3289268]
[1746061432065,0.17174364,94511.0,94510.0,1.6897268]
[1746061433772,0.17174364,94511.0,94510.0,1.6262868]
[1746061433979,0.17174364,94511.0,94510.0,1.6895668]
[1746061436887,0.18124364,94511.0,94510.0,1.6895668]
[1746061438593,0.21164364,94511.0,94510.0,1.6586668]
[1746061438789,0.21164364,94511.0,94510.0,1.5953868]
[1746061440792,0.21164364,94511.0,94510.0,1.2087072]
[1746061444894,0.21164364,94511.0,94510.0,1.2187072]
[1746061445783,0.20214364,94511.0,94510.0,1.2187072]
[1746061447996,0.17174364,94511.0,94510.0,1.2187072]
[1746061448495,0.17174364,94511.0,94510.0,1.2387072]
[1746061451893,0.17174364,94511.0,94510.0,1.2706072]
[1746061457594,0.14104364,94511.0,94510.0,1.2706072]
[1746061458599,0.01886921,94519.0,94510.0,1.2706072]
[1746061458600,0.12974625,94530.0,94521.0,0.2115826]
[1746061458895,0.02394919,94522.0,94521.0,0.8223826]
[1746061459098,0.14594919,94522.0,94521.0,2.33810444]
[1746061459294,0.14587628,94522.0,94521.0,2.33810445]
[1746061459487,0.13487914,94522.0,94521.0,2.40000445]
[1746061459689,0.12243884,94522.0,94521.0,2.40000445]
[1746061459894,0.12247884,94522.0,94521.0,2.40000445]
[1746061460088,0.00047884,94522.0,94521.0,2.40100445]
[1746061460597,0.01314876,94525.0,94524.0,0.2115758]
[1746061460794,0.01314876,94525.0,94524.0,0.84809765]
[1746061461106,0.01314876,94525.0,94524.0,0.84890967]
[1746061461285,0.01314876,94525.0,94524.0,2.34890967]
[1746061461485,0.01314876,94525.0,94524.0,2.35221643]
[1746061462399,0.01314876,94525.0,94524.0,2.34908855]
[1746061463091,0.01314876,94525.0,94524.0,2.3333758]
[1746061464493,0.01314876,94525.0,94524.0,2.3954758]
[1746061465090,0.13514876,94525.0,94524.0,2.3954758]
[1746061468194,0.13514876,94525.0,94524.0,2.7562758]
[1746061469197,0.13514876,94525.0,94524.0,2.8242358]
[1746061469687,0.13514876,94525.0,94524.0,2.7562758]
[1746061470099,0.13514876,94525.0,94524.0,2.8242358]
[1746061476896,0.13514876,94525.0,94524.0,1.3242358]
[1746061484918,0.13518876,94525.0,94524.0,1.3242358]
[1746061492820,0.13518876,94525.0,94524.0,2.8242358]
[1746061504316,0.13518876,94525.0,94524.0,2.8242358]
[1746061510520,0.13518876,94525.0,94524.0,1.3242358]
[1746061510714,0.13518876,94525.0,94524.0,1.3254758]
[1746061510922,0.13518876,94525.0,94524.0,1.2950758]
[1746061511414,0.17558876,94525.0,94524.0,1.2950758]
[1746061511929,0.49295436,94525.0,94524.0,0.6218]
[1746061512231,0.74295436,94525.0,94524.0,0.261]
[1746061512521,0.74295436,94525.0,94524.0,0.2111]
[1746061512723,0.74295436,94525.0,94524.0,0.4226758]
[1746061513922,0.74295436,94525.0,94524.0,0.4216758]
[1746061518518,0.49295436,94525.0,94524.0,0.4216758]
[1746061523932,0.49295436,94525.0,94524.0,0.2101]
[1746061524323,0.49295436,94525.0,94524.0,0.2415]
[1746061530135,0.49295436,94525.0,94524.0,0.4530758]
[1746061530823,0.45255436,94525.0,94524.0,0.4530758]
[1746061531634,0.45255436,94525.0,94524.0,0.4540758]
[1746061532524,0.45255436,94525.0,94524.0,0.4841758]
[1746061533134,0.45255436,94525.0,94524.0,0.4831758]
[1746061533437,0.45255436,94525.0,94524.0,0.4841758]
[1746061533635,0.34676236,94525.0,94524.0,0.4841758]
[1746061534228,0.34672236,94525.0,94524.0,0.4841758]
[1746061534426,0.34676236,94525.0,94524.0,0.4841758]
[1746061535325,0.34676236,94525.0,94524.0,0.49480528]
[1746061535729,0.34676236,94525.0,94524.0,0.4841758]
[1746061538224,0.34676236,94525.0,94524.0,0.4831758]
[1746061538434,0.34676236,94525.0,94524.0,0.4841758]
[1746061541141,0.45255436,94525.0,94524.0,0.2726]
[1746061541552,0.45255436,94525.0,94524.0,0.2716]
[1746061541739,0.49395436,94525.0,94524.0,0.2716]
[1746061547139,0.49395436,94525.0,94524.0,0.4831758]
[1746061547344,0.45255436,94525.0,94524.0,0.4831758]
[1746061552137,0.45255436,94525.0,94524.0,0.2716]
[1746061552343,0.2645251,94508.0,94494.0,0.3608]
[1746061552540,0.2645251,94508.0,94507.0,0.2645173]
[1746061552541,0.3174296,94508.0,94507.0,0.2645173]
[1746061552845,0.3174296,94508.0,94507.0,0.5245173]
[1746061553343,0.4394296,94508.0,94507.0,0.5245173]
[1746061554541,0.4394296,94508.0,94507.0,0.5275173]
[1746061555343,0.4394296,94508.0,94507.0,0.5265173]
[1746061555538,0.4394296,94508.0,94507.0,0.5903173]
[1746061557549,0.4394296,94508.0,94507.0,0.6217173]
[1746061558951,0.4394296,94508.0,94507.0,0.5688139]
[1746061562049,0.4394296,94508.0,94507.0,0.3572]
[1746061562353,0.4394296,94508.0,94507.0,0.2926]
[1746061562944,0.8002296,94508.0,94507.0,0.2926]
[1746061563653,0.8002296,94508.0,94507.0,0.2906]
[1746061566953,0.4394296,94508.0,94507.0,0.2906]
[1746061567753,0.12204,94508.0,94507.0,0.5022139]
[1746061567961,0.3336517,94508.0,94507.0,0.5022139]
[1746061568158,0.2116117,94508.0,94507.0,0.5022139]
[1746061568357,0.2116517,94508.0,94507.0,2.0022139]
[1746061569251,0.3336517,94508.0,94507.0,2.0022139]
[1746061569953,0.3336517,94508.0,94507.0,2.0032139]
[1746061570347,0.3336517,94508.0,94507.0,2.0052139]
[1746061570943,0.3336517,94508.0,94507.0,2.0042139]
[1746061572757,0.3336517,94508.0,94507.0,0.5042139]
[1746061573345,0.3336517,94508.0,94507.0,0.2926]
[1746061573554,0.3336517,94508.0,94507.0,0.5042139]
[1746061573958,0.3336517,94508.0,94507.0,0.5022139]
[1746061574155,0.3336517,94508.0,94507.0,0.5042139]
[1746061575754,0.12204,94508.0,94507.0,0.5042139]
[1746061576150,0.3336117,94508.0,94507.0,0.5042139]
[1746061576456,0.3336517,94508.0,94507.0,0.5042139]
[1746061576656,0.3336517,94508.0,94507.0,0.5022139]
[1746061576964,0.3336517,94508.0,94507.0,0.5032139]
[1746061577849,0.3336517,94508.0,94507.0,0.5052139]
[1746061578858,0.12204,94508.0,94507.0,0.5052139]
[1746061579167,0.2645112,94512.0,94511.0,0.2116049]
[1746061579349,0.2645112,94512.0,94511.0,0.8324049]
[1746061579953,0.2645112,94512.0,94511.0,0.8968049]
[1746061580261,0.3865112,94512.0,94511.0,0.8968049]
[1746061580759,0.3865112,94512.0,94511.0,0.8978049]
[1746061581162,0.3865112,94512.0,94511.0,0.8988049]
[1746061591566,0.3336104,94512.0,94511.0,0.8988049]
[1746061592960,0.3336504,94512.0,94511.0,0.8988049]
[1746061593471,0.12204,94512.0,94511.0,0.8988049]
[1746061594265,4e-05,94512.0,94511.0,0.8988049]
[1746061595556,0.0528986,94516.0,94511.0,0.6872]
[1746061595763,0.0528986,94516.0,94515.0,0.2115938]
[1746061595965,0.0528986,94516.0,94515.0,0.4715938]
[1746061596259,0.0528986,94516.0,94515.0,0.5328938]
[1746061596570,0.26454061,94519.0,94518.0,0.2115893]
[1746061596772,0.26454061,94519.0,94518.0,0.4615893]
[1746061597160,0.38654061,94519.0,94518.0,0.4615893]
[1746061597361,0.38654061,94519.0,94518.0,0.4944893]
[1746061598971,0.38654061,94519.0,94518.0,0.50529756]
[1746061599666,0.38654061,94519.0,94518.0,0.50629756]
[1746061600173,0.06341231,94519.0,94518.0,0.61174652]
[1746061600370,0.02400397,94546.0,94521.0,0.528952]
[1746061600562,0.02400397,94546.0,94545.0,0.9331289]
[1746061600757,5.401e-05,94548.0,94547.0,0.2115244]
[1746061600968,5.401e-05,94548.0,94547.0,0.7315244]
[1746061601173,5.401e-05,94548.0,94547.0,0.7092924]
[1746061601370,0.0015,94555.0,94548.0,0.2115221]
[1746061601669,0.23660833,94549.0,94548.0,0.21203266]
[1746061601867,0.23660833,94549.0,94548.0,0.42355481]
[1746061602056,0.02508843,94549.0,94548.0,0.42355481]
[1746061602257,0.14708843,94549.0,94548.0,0.78435481]
[1746061602463,0.14708843,94549.0,94548.0,0.78433758]
[1746061602871,0.14712843,94549.0,94548.0,0.7843127]
[1746061603060,0.14708843,94549.0,94548.0,0.7843127]
[1746061603258,0.02512843,94549.0,94548.0,0.7853127]
[1746061604772,0.02512843,94549.0,94548.0,0.5853127]
[1746061604974,0.02512843,94549.0,94548.0,0.8653127]
[1746061606968,0.02512843,94549.0,94548.0,0.9710767]
[1746061607169,0.0015,94555.0,94548.0,0.9710767]
[1746061607170,0.0015,94555.0,94551.0,0.2115154]
[1746061607372,0.02835393,94557.0,94556.0,0.2115042]
[1746061607669,0.02835393,94557.0,94556.0,0.4634948]
[1746061607873,0.02839393,94557.0,94556.0,0.9850508]
[1746061608862,0.02839393,94557.0,94556.0,0.98475812]
[1746061609064,0.02839393,94557.0,94556.0,0.98475815]
[1746061609268,0.02839393,94557.0,94556.0,0.9730602]
[1746061609659,0.02839393,94557.0,94556.0,0.98475712]
[1746061609977,0.02586074,94560.0,94559.0,0.2114975]
[1746061610173,0.02586074,94560.0,94559.0,0.86396625]
[1746061610562,0.02586074,94560.0,94559.0,0.86395966]
[1746061610770,0.02586074,94560.0,94559.0,0.8522975]
[1746061611266,0.02586074,94560.0,94559.0,0.9580495]
[1746061611870,0.02586074,94560.0,94559.0,0.96969415]
[1746061612574,0.02586074,94560.0,94559.0,0.96968827]
[1746061612875,0.02586074,94560.0,94559.0,0.9896495]
[1746061613785,0.02586074,94560.0,94559.0,1.00131893]
[1746061614276,0.14786074,94560.0,94559.0,1.00131893]
[1746061615272,0.14786074,94560.0,94559.0,1.03381893]
[1746061615574,0.03,94572.0,94564.0,0.2114863]
[1746061615772,0.0316,94569.0,94564.0,0.84395573]
[1746061616368,0.0316,94569.0,94564.0,0.90815573]
[1746061616766,0.0316,94569.0,94564.0,0.91984518]
[1746061619967,0.0316,94569.0,94564.0,0.92008315]
[1746061620470,5.401e-05,94575.0,94569.0,0.0528683]
[1746061620777,0.05662311,94578.0,94575.0,0.2114618]
[1746061620981,0.05662311,94578.0,94575.0,0.5033692]
[1746061621178,0.05662311,94578.0,94575.0,0.5665692]
[1746061621179,0.15269019,94576.0,94575.0,0.5665692]
[1746061621769,0.15269019,94576.0,94575.0,0.5033692]
[1746061622184,0.15269019,94576.0,94575.0,0.50333468]
[1746061622478,0.15269019,94576.0,94575.0,0.53333468]
[1746061622669,0.15269019,94576.0,94575.0,0.53333793]
[1746061623073,0.15269019,94576.0,94575.0,0.53326929]
[1746061623979,0.18329019,94576.0,94575.0,0.53326929]
[1746061625570,0.18329019,94576.0,94575.0,0.53323296]
[1746061625771,0.18329019,94576.0,94575.0,0.53423296]
[1746061627381,0.18329019,94576.0,94575.0,0.53423775]
[1746061627980,0.18329019,94576.0,94575.0,0.53425093]
[1746061629282,0.18329019,94576.0,94575.0,0.53424321]
[1746061629481,0.39474969,94576.0,94575.0,0.50424321]
[1746061629781,0.18329019,94576.0,94575.0,0.50424321]
[1746061630474,0.39474969,94576.0,94575.0,0.50424321]
[1746061630678,0.21629019,94576.0,94575.0,0.50424321]
[1746061632674,0.21629019,94576.0,94575.0,0.53534321]
[1746061632865,0.21629019,94576.0,94575.0,0.53536461]
[1746061633582,0.2088531,94576.0,94575.0,0.53536461]
[1746061633966,0.2088531,94576.0,94575.0,0.5235618]
[1746061646394,0.4203126,94576.0,94575.0,0.5235618]
[1746061647590,0.2088531,94576.0,94575.0,0.5235618]
[1746061647895,0.2088531,94576.0,94575.0,0.5554618]
[1746061649095,0.4203126,94576.0,94575.0,0.5554618]
[1746061649293,0.2088531,94576.0,94575.0,0.5554618]
[1746061651893,0.4203126,94576.0,94575.0,0.5554618]
[1746061654901,0.3897126,94576.0,94575.0,0.5554618]
[1746061657997,0.3897126,94576.0,94575.0,0.5235618]
[1746061667792,0.3897126,94576.0,94575.0,0.5245618]
[1746061669390,0.3567126,94576.0,94575.0,0.5225618]
[1746061669598,0.1452531,94576.0,94575.0,0.5245618]
[1746061670204,0.1452931,94576.0,94575.0,0.5572618]
[1746061670404,0.1452531,94576.0,94575.0,0.5572618]
[1746061670706,0.1452931,94576.0,94575.0,0.5572618]
[1746061671198,0.1452931,94576.0,94575.0,0.5552618]
[1746061671393,0.1452931,94576.0,94575.0,0.5572618]
[1746061672000,0.1452931,94576.0,94575.0,0.5592618]
[1746061673097,0.3567526,94576.0,94575.0,0.5592618]
[1746061677814,0.3567526,94576.0,94575.0,0.5552618]
[1746061678014,0.3567526,94576.0,94575.0,0.5592618]
[1746061678417,0.3567526,94576.0,94575.0,0.5582618]
[1746061681020,0.4198526,94576.0,94575.0,0.5582618]
[1746061681316,0.3896526,94576.0,94575.0,0.5582618]
[1746061681518,0.3896526,94576.0,94575.0,0.5572618]
[1746061683624,0.3896526,94576.0,94575.0,0.5552618]
[1746061683819,0.3896526,94576.0,94575.0,0.5582618]
[1746061684707,0.1781931,94576.0,94575.0,0.5582618]
[1746061685617,0.3896526,94576.0,94575.0,0.5582618]
[1746061687216,0.3896526,94576.0,94575.0,0.5552618]
[1746061687426,0.3896526,94576.0,94575.0,0.5582618]
[1746061692016,0.4201526,94576.0,94575.0,0.5582618]
[1746061693210,0.3896526,94576.0,94575.0,0.5582618]
[1746061693412,0.1781931,94576.0,94575.0,0.5582618]
[1746061693617,0.1452531,94576.0,94575.0,0.5582618]
[1746061694227,0.0232531,94576.0,94575.0,0.5582618]
[1746061694418,0.0232531,94576.0,94575.0,0.5592618]
[1746061694931,0.0232931,94576.0,94575.0,0.5592618]
[1746061695225,0.1452531,94576.0,94575.0,0.5592618]
[1746061695527,0.1452931,94576.0,94575.0,0.5592618]
[1746061695822,0.14544924,94576.0,94575.0,0.5592618]
[1746061697626,0.35690874,94576.0,94575.0,0.5592618]
[1746061698319,0.38780874,94576.0,94575.0,0.5592618]
[1746061698520,0.41830874,94576.0,94575.0,0.5592618]
[1746061700028,0.41830874,94576.0,94575.0,0.5582618]
[1746061705232,0.41830874,94576.0,94575.0,0.5255618]
[1746061708829,0.14544924,94576.0,94575.0,0.5255618]
[1746061709735,0.14540924,94576.0,94575.0,0.5255618]
[1746061710034,0.14544924,94576.0,94575.0,0.5255618]
[1746061710235,0.14544924,94576.0,94575.0,0.5265618]
[1746061713641,0.14540924,94576.0,94575.0,0.5265618]
[1746061713841,0.14544924,94576.0,94575.0,0.6322978]
[1746061714335,0.02344924,94576.0,94575.0,0.6322978]
[1746061714538,0.02344924,94576.0,94575.0,0.64801845]
[1746061715128,0.02344924,94576.0,94575.0,0.54228245]
[1746061717443,0.02344924,94576.0,94575.0,0.5265618]
[1746061718434,0.02344924,94576.0,94575.0,0.90290852]
[1746061718944,0.02452311,94578.0,94577.0,0.2114573]
[1746061719142,0.02452311,94578.0,94577.0,0.50700402]
[1746061719537,0.02452311,94578.0,94577.0,0.5568573]
[1746061722147,0.02452311,94578.0,94577.0,0.5608573]
[1746061724649,0.02452311,94578.0,94577.0,0.57636487]
[1746061726253,0.14652311,94578.0,94577.0,0.57636487]
[1746061727634,0.14652311,94578.0,94577.0,0.5608573]
[1746061730148,0.00320911,94579.0,94578.0,0.211455]
[1746061730345,0.02932726,94581.0,94580.0,0.2114506]
[1746061730651,0.02932726,94581.0,94580.0,0.4514506]
[1746061731154,0.15132726,94581.0,94580.0,0.4514506]
[1746061732238,0.04824151,94581.0,94580.0,0.4514506]
[1746061733245,0.04824151,94581.0,94580.0,0.4544506]
[1746061736949,0.00383425,94619.0,94618.0,0.2113657]
[1746061737254,0.00505708,94633.0,94628.0,0.0528353]
[1746061737440,0.0923,94632.0,94629.0,0.0528352]
[1746061737639,0.0923,94632.0,94629.0,0.14]
[1746061737841,0.0528356,94629.0,94618.0,0.3608]
[1746061738053,0.2113612,94620.0,94619.0,0.2113564]
[1746061738355,0.2113612,94620.0,94619.0,0.2913612]
[1746061738747,0.2723612,94620.0,94619.0,0.2913612]
[1746061739049,0.3943612,94620.0,94619.0,0.2913612]
[1746061739254,0.7500492,94620.0,94619.0,0.0301]
[1746061739449,0.2113813,94611.0,94610.0,0.5721791]
[1746061739641,0.2113813,94611.0,94610.0,0.6221791]
[1746061739851,0.0635,94612.0,94611.0,0.2113813]
[1746061740052,0.2748791,94612.0,94611.0,0.4613813]
[1746061740249,0.3968791,94612.0,94611.0,0.4613813]
[1746061740554,0.1855,94612.0,94611.0,0.4613813]
[1746061740851,0.18554,94612.0,94611.0,0.4613813]
[1746061741851,0.18554,94612.0,94611.0,0.4922813]
[1746061742050,0.18554,94612.0,94611.0,0.4952813]
[1746061743144,0.0428678,94612.0,94611.0,0.92682111]
[1746061743350,0.0428678,94612.0,94611.0,0.95872111]
[1746061743552,0.0428678,94612.0,94611.0,0.9429813]
[1746061743751,0.0076861,94612.0,94611.0,0.970414]
[1746061743955,0.0318,94616.0,94615.0,0.2113724]
[1746061744261,0.1538,94616.0,94615.0,0.51900162]
[1746061744758,0.1538,94616.0,94615.0,0.4913724]
[1746061744960,0.1538,94616.0,94615.0,0.57057631]
[1746061745257,0.1538,94616.0,94615.0,0.5580724]
[1746061749662,0.122,94616.0,94615.0,0.5580724]
[1746061749957,5.401e-05,94628.0,94615.0,0.6637644]
[1746061750259,0.00505708,94633.0,94632.0,0.2113344]
[1746061750458,0.00505708,94633.0,94632.0,0.4813344]
[1746061750858,0.00505708,94633.0,94632.0,0.5439344]
[1746061751358,0.12705708,94633.0,94632.0,0.5439344]
[1746061751558,0.12709708,94633.0,94632.0,0.5439344]
[1746061751859,0.12709708,94633.0,94632.0,0.5449344]
[1746061752758,0.12709708,94633.0,94632.0,0.5124344]
[1746061755964,0.12709708,94633.0,94632.0,0.4823344]
[1746061756464,0.12709708,94633.0,94632.0,0.48563793]
[1746061757357,0.12709708,94633.0,94632.0,0.4823344]
[1746061758363,0.33842918,94633.0,94632.0,0.4823344]
[1746061759069,0.12709708,94633.0,94632.0,0.4823344]
[1746061759460,0.33842918,94633.0,94632.0,0.4823344]
[1746061763269,0.12709708,94633.0,94632.0,0.4823344]
[1746061763571,0.12705708,94633.0,94632.0,0.4823344]
[1746061763965,0.12709708,94633.0,94632.0,0.5138344]
[1746061764168,0.12705708,94633.0,94632.0,0.5138344]
[1746061764571,0.12705708,94633.0,94632.0,0.51713804]
[1746061764759,0.12705708,94633.0,94632.0,0.52901578]
[1746061764963,0.12709708,94633.0,94632.0,0.52901578]
[1746061765259,0.12705708,94633.0,94632.0,0.52901577]
[1746061765458,0.12709708,94633.0,94632.0,0.52901577]
[1746061765658,0.12709708,94633.0,94632.0,0.5290226]
[1746061766160,0.12709708,94633.0,94632.0,0.52902288]
[1746061766360,0.12709708,94633.0,94632.0,0.51713804]
[1746061766564,0.12709708,94633.0,94632.0,0.52902274]
[1746061766764,0.06829478,94633.0,94632.0,0.54554884]
[1746061767158,0.06825478,94633.0,94632.0,0.54554884]
[1746061767373,0.06829478,94633.0,94632.0,0.54554884]
[1746061767576,0.06829478,94633.0,94632.0,0.54538403]
[1746061767866,0.06829478,94633.0,94632.0,0.54208039]
[1746061768469,0.06829478,94633.0,94632.0,0.525564]
[1746061768767,0.06829478,94633.0,94632.0,0.54208101]
[1746061769169,0.06829478,94633.0,94632.0,0.54208315]
[1746061769465,0.06829478,94633.0,94632.0,0.53035151]
[1746061769673,0.06829478,94633.0,94632.0,0.54208285]
[1746061769968,0.06829478,94633.0,94632.0,0.53035151]
[1746061770163,0.06829478,94633.0,94632.0,0.53017722]
[1746061770959,0.06829478,94633.0,94632.0,0.5138344]
[1746061771160,0.06829478,94633.0,94632.0,0.53017722]
[1746061771772,0.06829478,94633.0,94632.0,0.53018366]
[1746061772270,0.06829478,94633.0,94632.0,0.5138344]
[1746061772466,0.06829478,94633.0,94632.0,0.53018361]
[1746061772667,0.06829478,94633.0,94632.0,0.5138344]
[1746061772866,0.06829478,94633.0,94632.0,0.53018442]
[1746061773069,0.06829478,94633.0,94632.0,0.53019522]
[1746061773369,0.06829478,94633.0,94632.0,0.53019545]
[1746061773558,0.06829478,94633.0,94632.0,0.5301955]
[1746061774771,0.06825478,94633.0,94632.0,0.5300152]
[1746061774959,0.06829478,94633.0,94632.0,0.5300152]
[1746061775570,0.06829478,94633.0,94632.0,0.53001516]
[1746061775878,0.06829478,94633.0,94632.0,0.5138344]